bitfinex/quotes_ETHUSD_20240926
["timestamp","ask_amount","ask_price","bid_price","bid_amount"]
[1727357539916,0.7791,2629.6,2629.1,3.80347]
[1727357540117,5.040282,2629.6,2629.0,3.80369]
[1727357540424,5.040282,2629.6,2628.8,3.804]
[1727357540425,3.8033,2629.3,2628.8,3.804]
[1727357540726,0.7893,2629.2,2628.8,3.804]
[1727357541220,4.67236477,2629.1,2628.6,3.80421]
[1727357541580,4.67236477,2629.1,2628.8,3.80401]
[1727357541780,0.7893,2629.2,2628.8,3.80392]
[1727357542419,0.7893,2629.2,2628.9,3.80384]
[1727357542911,1.248546,2629.2,2628.7,3.80402]
[1727357543217,4.59274,2629.2,2628.7,3.80402]
[1727357544317,4.59274,2629.2,2628.9,3.80386]
[1727357544318,0.7893,2629.2,2628.9,3.80386]
[1727357544680,0.7893,2629.2,2628.7,3.80405]
[1727357544916,5.052055,2629.2,2628.7,3.80405]
[1727357545299,8.855575,2629.2,2628.7,3.80405]
[1727357545515,5.052055,2629.2,2628.7,3.80405]
[1727357546095,5.052055,2629.2,2628.7,7.60814]
[1727357546621,5.052055,2629.2,2628.3,3.0]
[1727357546622,0.7893,2629.2,2628.8,3.80392]
[1727357547208,0.7893,2629.2,2628.9,3.80384]
[1727357547392,8.47475477,2630.0,2628.8,3.80394]
[1727357547706,8.47475477,2630.0,2629.2,3.80342]
[1727357547707,3.80278,2629.7,2629.2,3.80342]
[1727357547907,4.60697,2629.8,2629.4,3.80313]
[1727357548921,3.80288,2629.6,2629.2,3.80329]
[1727357549089,0.7698,2629.4,2629.0,3.80362]
[1727357549934,4.66803325,2629.4,2628.8,3.8039]
[1727357550122,4.57295,2629.4,2628.9,3.80387]
[1727357550323,4.57295,2629.4,2628.8,3.8039]
[1727357550324,3.80329,2629.3,2628.8,7.60784]
[1727357550540,3.80329,2629.3,2628.8,3.804]
[1727357550867,3.80329,2629.3,2628.8,7.60793]
[1727357551366,8.37618,2629.4,2628.9,3.80384]
[1727357551547,9.30071148,2629.4,2628.9,3.80384]
[1727357551749,1.69433148,2629.4,2628.6,3.0]
[1727357551951,0.7698,2629.4,2629.0,3.8036]
[1727357552151,0.7698,2629.4,2629.1,3.80357]
[1727357552370,0.7698,2629.4,2629.0,3.8036]
[1727357552527,0.7698,2629.4,2629.0,7.60724]
[1727357552727,0.7698,2629.4,2629.1,3.80356]
[1727357552932,3.80268,2629.8,2629.3,3.80329]
[1727357552933,0.8121,2629.7,2629.3,3.80329]
[1727357553533,4.61486,2629.7,2629.2,3.80342]
[1727357553887,0.8121,2629.7,2629.1,3.80353]
[1727357554191,0.8121,2629.7,2629.3,3.80327]
[1727357554694,0.8121,2629.7,2629.3,3.80321]
[1727357554842,5.16824946,2629.7,2629.1,3.80347]
[1727357555235,3.80287,2629.6,2629.1,7.60697]
[1727357555451,3.80292,2629.6,2629.1,3.80347]
[1727357556194,3.80292,2629.6,2629.0,3.80372]
[1727357556195,3.8032,2629.4,2629.0,3.80372]
[1727357556890,3.8032,2629.4,2628.9,6.80386]
[1727357557397,3.8032,2629.4,2629.0,3.80372]
[1727357557953,3.8032,2629.4,2628.9,6.80386]
[1727357558154,4.73057648,2629.4,2628.3,4.42426082]
[1727357558395,3.80353,2629.2,2628.7,3.80403]
[1727357558609,0.92737648,2629.4,2628.3,4.42419082]
[1727357558610,8.47645477,2628.8,2628.3,4.42419082]
[1727357558768,5.49106477,2628.4,2628.3,0.61957082]
[1727357559098,9.29565477,2628.4,2628.3,0.13553111]
[1727357559300,0.7754,2628.2,2626.8,1.44937141]
[1727357559503,0.55,2628.3,2626.6,3.8071]
[1727357559504,5.44776477,2627.5,2626.6,3.8071]
[1727357559652,3.80642,2627.2,2626.6,3.8071]
[1727357559998,3.80629,2627.3,2626.7,3.807]
[1727357560160,3.80629,2627.3,2626.6,3.80709]
[1727357560506,4.67236477,2627.4,2626.6,3.80713]
[1727357560705,4.67236477,2627.4,2626.8,3.80681]
[1727357561108,8.47841477,2627.4,2626.8,3.80681]
[1727357561312,8.47841477,2627.4,2626.8,3.8128878]
[1727357561511,4.67236477,2627.4,2626.8,0.0060778]
[1727357561681,3.80619,2627.3,2626.8,0.0060778]
[1727357562009,8.47840477,2627.4,2626.8,3.8129578]
[1727357562492,3.80627,2627.3,2626.8,0.0060778]
[1727357562698,8.47840477,2627.4,2626.8,0.0060778]
[1727357563096,8.47840477,2627.4,2626.8,3.8129278]
[1727357563710,8.47840477,2627.4,2626.8,0.0060778]
[1727357563919,0.7787,2627.1,2626.8,0.0060778]
[1727357564579,0.7787,2627.1,2626.8,3.8129678]
[1727357564787,0.7787,2627.1,2626.8,0.0060778]
[1727357567276,0.7787,2627.1,2626.8,3.8129678]
[1727357567608,0.7787,2627.1,2626.8,0.0060778]
[1727357567912,4.67236477,2627.0,2626.8,0.0060778]
[1727357568139,3.80676,2626.9,2626.8,0.0060778]
[1727357569260,4.62466,2626.9,2626.8,0.0060778]
[1727357569948,4.71984811,2626.9,2626.8,0.0060778]
[1727357570744,5.17466,2626.9,2626.8,0.0060778]
[1727357571062,5.17466,2626.9,2626.0,0.0388437]
[1727357571063,4.62582,2626.1,2626.0,0.0388437]
[1727357571354,4.62582,2626.1,2625.0,0.0019]
[1727357571355,0.8179,2626.0,2625.0,0.0019]
[1727357571498,0.8179,2626.0,2625.2,3.8480137]
[1727357571499,3.80822,2625.9,2625.2,3.8480137]
[1727357571699,4.67236477,2625.7,2625.2,0.0388437]
[1727357571925,3.80865,2625.6,2625.2,0.0388437]
[1727357572169,3.80881,2625.5,2625.2,0.0388437]
[1727357572330,4.67236477,2625.4,2625.2,0.0388437]
[1727357572675,13.12157477,2625.4,2625.2,0.0388437]
[1727357572894,1.31215748,2625.3,2624.5,3.81015]
[1727357573049,1.31215748,2625.3,2624.4,0.4199437]
[1727357573050,1.31215748,2625.3,2624.4,0.0388437]
[1727357573051,8.48228477,2624.8,2624.4,0.0388437]
[1727357573365,3.81024,2624.5,2624.4,0.0388437]
[1727357573876,0.794,2624.7,2624.4,0.0388437]
[1727357574022,4.60409,2624.7,2624.4,0.0388437]
[1727357574429,0.794,2624.7,2624.4,0.0388437]
[1727357574660,4.60397,2624.7,2624.4,0.0388437]
[1727357574866,0.794,2624.7,2624.4,0.0388437]
[1727357575132,4.57089,2625.0,2624.4,0.0388437]
[1727357575339,0.7613,2625.0,2624.6,3.81005]
[1727357575591,0.7613,2625.0,2624.6,3.81008]
[1727357575737,0.7613,2625.0,2624.5,3.81013]
[1727357576263,0.7613,2625.0,2624.4,0.0388437]
[1727357576264,3.81001,2624.7,2624.4,0.0388437]
[1727357576433,3.80978,2624.9,2624.4,0.0388437]
[1727357576630,0.7613,2625.0,2624.4,0.0388437]
[1727357576875,0.7613,2625.0,2624.5,3.81023]
[1727357577380,0.7613,2625.0,2624.4,0.0388437]
[1727357577381,4.67236477,2624.8,2624.4,0.0388437]
[1727357577529,3.81006,2624.7,2624.4,0.0388437]
[1727357577735,3.81024,2624.5,2624.4,0.0388437]
[1727357577978,3.80987,2624.8,2624.4,0.0388437]
[1727357579175,3.80972,2624.9,2624.4,0.0388437]
[1727357579616,0.7613,2625.0,2624.4,0.0388437]
[1727357579617,3.80997,2624.7,2624.4,0.0388437]
[1727357580084,3.8101,2624.6,2624.4,0.0388437]
[1727357580286,3.81024,2624.5,2624.4,0.0388437]
[1727357580912,4.57624,2624.5,2624.4,0.0388437]
[1727357581116,4.67151628,2624.5,2624.4,0.0388437]
[1727357581319,4.57624,2624.5,2624.4,0.0388437]
[1727357581675,5.3793153,2624.5,2624.4,0.0388437]
[1727357582078,5.3793153,2624.5,2623.6,0.0388437]
[1727357582079,4.64271,2623.7,2623.6,0.0388437]
[1727357582279,0.8313,2623.7,2623.6,0.0388437]
[1727357582515,3.81103,2624.0,2623.6,0.0388437]
[1727357583036,3.81112,2623.9,2623.6,0.0388437]
[1727357583212,3.81141,2623.7,2623.6,0.0388437]
[1727357583517,8.48362477,2623.8,2623.0,7.62467]
[1727357583518,4.56865,2623.6,2623.5,0.0380367]
[1727357583816,3.81042,2624.4,2623.5,0.0380367]
[1727357583817,3.81049,2624.4,2623.5,0.0380367]
[1727357584006,0.7571,2624.5,2623.5,3.8496767]
[1727357584206,3.80988,2624.8,2623.6,0.0453]
[1727357584414,0.7571,2624.9,2624.2,3.81056]
[1727357584728,3.80932,2625.2,2624.6,3.81]
[1727357584729,0.7728,2625.2,2624.6,3.81]
[1727357584887,0.7728,2625.2,2624.8,3.80978]
[1727357585093,0.7728,2625.2,2624.6,3.81]
[1727357585287,3.80938,2625.1,2624.6,3.81]
[1727357585590,0.7728,2625.2,2624.4,3.81039]
[1727357585806,4.64057,2625.5,2624.8,3.80972]
[1727357586597,3.80905,2625.4,2624.8,3.80972]
[1727357587051,3.80909,2625.3,2624.8,3.80972]
[1727357587417,0.8317,2625.5,2624.4,3.81033]
[1727357587620,0.8317,2625.5,2625.2,3.80913]
[1727357587819,3.80848,2625.8,2625.2,7.61827]
[1727357588179,0.7803,2625.9,2625.4,3.80882]
[1727357588461,3.8074,2626.5,2624.5,3.0]
[1727357588462,4.57118,2626.3,2625.7,3.80841]
[1727357588627,4.57118,2626.3,2625.6,0.0453]
[1727357588628,3.80787,2626.2,2625.6,3.80864]
[1727357588821,3.80787,2626.2,2625.4,3.80886]
[1727357588822,3.80816,2626.0,2625.4,3.80886]
[1727357589017,3.80816,2626.0,2624.2,0.3819]
[1727357589018,5.3864913,2625.7,2624.6,0.0453]
[1727357589256,5.3864913,2625.7,2624.9,3.80957]
[1727357589257,3.80889,2625.5,2624.9,3.80957]
[1727357589955,3.80889,2625.5,2624.7,3.80989]
[1727357589956,3.80905,2625.4,2624.7,7.61975]
[1727357590165,3.80889,2625.5,2624.8,3.80979]
[1727357590315,3.80889,2625.5,2624.9,3.80955]
[1727357590521,3.80889,2625.5,2624.7,3.80986]
[1727357590721,3.80889,2625.5,2624.9,3.80962]
[1727357591155,3.80896,2625.4,2624.8,3.80979]
[1727357591327,3.80927,2625.2,2624.6,0.0453]
[1727357591528,4.60467,2625.2,2624.6,0.0453]
[1727357591762,4.60467,2625.2,2624.6,3.85531]
[1727357592141,3.80941,2625.1,2624.6,0.0453]
[1727357592359,0.09523486,2625.1,2624.3,6.85575]
[1727357592561,4.60471,2625.2,2624.7,3.80994]
[1727357592924,4.60471,2625.2,2624.5,3.81012]
[1727357592925,4.60472,2625.2,2624.6,3.81008]
[1727357593119,3.8094,2625.1,2624.5,3.81018]
[1727357593425,3.8094,2625.1,2624.3,3.85574]
[1727357593426,0.93665379,2625.1,2624.3,3.85574]
[1727357593626,3.80959,2625.0,2624.4,3.81031]
[1727357593824,4.60472,2625.2,2624.6,3.81]
[1727357594022,4.60472,2625.2,2624.3,0.0453]
[1727357594023,0.7954,2625.2,2624.3,0.0453]
[1727357594223,3.80954,2625.0,2624.3,3.0453]
[1727357594526,3.80954,2625.0,2624.4,7.62057]
[1727357594661,3.8095,2625.1,2624.6,3.8101]
[1727357594867,1.549246,2625.5,2624.9,3.80952]
[1727357595071,1.549246,2625.5,2625.0,3.88560399]
[1727357595072,0.7875,2625.5,2625.0,3.88560399]
[1727357595233,0.7875,2625.5,2625.0,7.61886]
[1727357595438,0.7875,2625.5,2624.5,6.81022]
[1727357595439,3.80872,2625.6,2624.9,0.0453]
[1727357595634,3.80872,2625.6,2625.0,3.80943]
[1727357595837,3.80895,2625.4,2624.8,3.80972]
[1727357596142,4.59668,2625.3,2624.8,3.80979]
[1727357596637,3.80886,2625.5,2625.0,3.80943]
[1727357596836,3.80886,2625.5,2624.7,3.80988]
[1727357596837,3.80936,2625.2,2624.7,3.80988]
[1727357597271,3.90441869,2625.3,2624.6,3.0]
[1727357597473,3.90441869,2625.3,2624.5,0.0453]
[1727357597474,0.7966,2625.1,2624.5,0.0453]
[1727357597753,0.7966,2625.1,2624.7,3.80983]
[1727357597939,0.7966,2625.1,2624.5,7.66562]
[1727357597940,4.60605,2625.1,2624.5,7.66562]
[1727357598139,4.60605,2625.1,2624.5,3.85546]
[1727357598337,0.7966,2625.1,2624.5,3.85546]
[1727357598659,4.60609,2625.1,2624.5,3.81022]
[1727357598856,4.60606,2625.1,2624.6,3.81001]
[1727357599181,0.7966,2625.4,2624.9,3.80953]
[1727357599943,0.7966,2625.4,2625.1,3.80935]
[1727357600978,4.6306,2625.7,2625.2,3.8092]
[1727357601187,4.6306,2625.7,2625.1,3.80935]
[1727357601359,4.6306,2625.7,2625.1,7.61863]
[1727357601683,0.822,2625.7,2625.3,3.80904]
[1727357601886,4.63052,2625.7,2625.1,3.80931]
[1727357602041,4.63052,2625.7,2625.2,3.80922]
[1727357602477,5.3864913,2626.0,2624.8,0.0453]
[1727357602478,0.8149,2626.0,2624.8,0.0453]
[1727357602787,0.8149,2626.0,2625.5,3.85402]
[1727357602956,0.8149,2626.2,2625.7,3.8085]
[1727357603150,0.8149,2626.2,2625.5,3.85402]
[1727357603151,3.80805,2626.1,2625.5,3.85402]
[1727357603356,7.61611,2626.1,2625.5,3.85402]
[1727357603553,3.80805,2626.1,2625.5,3.85401]
[1727357603781,3.80805,2626.1,2625.6,3.80861]
[1727357604592,0.8149,2626.2,2625.7,3.80838]
[1727357604741,0.8149,2626.2,2625.6,3.80855]
[1727357604742,4.62274,2626.2,2625.6,3.80855]
[1727357604939,0.8149,2626.2,2625.7,3.80843]
[1727357605184,0.8149,2626.2,2625.5,0.0453]
[1727357605185,0.8149,2626.2,2625.9,3.8082]
[1727357605392,3.80737,2626.5,2626.1,3.80781]
[1727357605393,0.7803,2626.5,2626.1,3.80781]
[1727357605687,0.7959789,2626.8,2626.3,3.80761]
[1727357606400,0.7959789,2626.8,2626.3,3.80752]
[1727357607355,0.0156789,2626.8,2626.0,0.0453]
[1727357607560,0.0156789,2626.8,2626.7,3.80705]
[1727357607886,0.0156789,2626.8,2626.1,5.28413845]
[1727357607887,0.0156789,2626.8,2626.6,3.80719]
[1727357608058,0.0156789,2626.8,2626.7,3.80705]
[1727357608253,0.0156789,2626.8,2626.6,3.80719]
[1727357608591,0.0156789,2626.8,2626.4,3.80743]
[1727357608808,0.0156789,2626.8,2626.6,3.80718]
[1727357609308,0.0156789,2626.8,2626.3,3.80754]
[1727357609691,0.0156789,2626.8,2626.5,3.80721]
[1727357609895,0.0156789,2626.8,2626.5,3.80725]
[1727357610199,0.0156789,2626.8,2626.5,3.80724]
[1727357610402,0.0156789,2626.8,2626.6,3.80712]
[1727357610908,0.0156789,2626.8,2626.1,6.80787]
[1727357610909,0.7771,2626.7,2626.1,6.80785]
[1727357611063,4.67942638,2626.7,2626.1,6.80785]
[1727357611263,3.80729,2626.6,2625.7,0.0453]
[1727357611466,3.80742,2626.5,2626.0,3.80807]
[1727357611694,6.31340352,2626.7,2626.2,3.80778]
[1727357611896,6.31340352,2626.7,2626.0,3.80807]
[1727357611897,6.31340352,2626.7,2626.0,7.61605]
[1727357612207,6.31340352,2626.7,2625.7,0.0453]
[1727357612208,1.62731253,2626.7,2626.1,3.80789]
[1727357612361,3.80736,2626.5,2625.9,3.8081]
[1727357612563,3.80734,2626.6,2625.9,3.8081]
[1727357612912,0.7771,2626.7,2626.2,3.80777]
[1727357613066,0.7771,2626.7,2625.7,3.85378]
[1727357613067,0.09519133,2626.6,2626.1,3.80779]
[1727357613277,7.70976133,2626.6,2626.1,3.80779]
[1727357613621,7.61459,2626.6,2626.1,3.80779]
[1727357613805,0.09519147,2626.5,2626.0,3.80805]
[1727357614321,3.90261165,2626.5,2625.9,3.80812]
[1727357614529,3.90261243,2626.5,2625.9,3.80812]
[1727357614685,7.6146,2626.6,2626.0,3.80803]
[1727357615079,4.74320937,2626.6,2626.0,3.80803]
[1727357615321,3.80763,2626.4,2625.8,3.80822]
[1727357615622,3.80758,2626.4,2625.9,3.80816]
[1727357615828,0.7771,2626.5,2626.0,3.80806]
[1727357616332,0.7771,2626.5,2626.0,3.80799]
[1727357616920,4.58446,2626.5,2626.0,3.80799]
[1727357617134,5.97631689,2626.5,2626.0,3.80799]
[1727357617637,0.7744,2626.2,2625.2,0.0453]
[1727357617817,3.80823,2625.9,2625.4,3.80882]
[1727357617985,3.80805,2626.1,2625.3,6.80899]
[1727357618340,0.7744,2626.2,2625.3,6.80899]
[1727357618341,3.80832,2625.9,2625.3,6.80899]
[1727357618634,3.80832,2625.9,2625.0,0.0453]
[1727357618635,0.86231544,2625.8,2625.0,0.0453]
[1727357618795,0.86231544,2625.8,2625.4,3.80891]
[1727357619699,4.67069544,2625.8,2625.2,3.80909]
[1727357619997,0.7671,2625.8,2625.4,3.80881]
[1727357620196,0.7671,2625.8,2625.0,0.0453]
[1727357620197,0.7671,2625.8,2625.5,3.80878]
[1727357620692,0.7671,2625.8,2625.6,3.80857]
[1727357620997,0.7671,2625.8,2625.0,0.0453]
[1727357620998,0.8207,2626.1,2625.7,3.80842]
[1727357621738,0.8156,2626.6,2626.0,3.80795]
[1727357621940,3.80735,2626.5,2626.0,3.80795]
[1727357622434,3.80738,2626.5,2626.0,3.80797]
[1727357622601,3.80751,2626.4,2625.9,3.80814]
[1727357622802,3.80735,2626.5,2625.9,3.80814]
[1727357623134,3.80735,2626.5,2625.7,3.8084]
[1727357623135,3.80774,2626.3,2625.7,3.8084]
[1727357623318,0.8156,2626.5,2626.0,3.80796]
[1727357623319,4.62305,2626.5,2626.0,3.80796]
[1727357623897,0.8156,2626.5,2625.6,6.85389]
[1727357624103,4.62295,2626.5,2626.0,3.808]
[1727357624301,5.9345681,2626.5,2625.9,3.8082]
[1727357624505,3.80756,2626.4,2625.9,3.8082]
[1727357625107,5.9345681,2626.5,2625.8,3.80826]
[1727357625344,3.8075,2626.4,2625.9,3.80821]
[1727357626199,3.80765,2626.3,2625.9,3.80821]
[1727357626748,9.7420281,2626.5,2625.9,3.80813]
[1727357627244,0.8156,2626.5,2626.2,3.80765]
[1727357628444,0.8156,2626.5,2626.1,3.80792]
[1727357628950,0.8156,2626.5,2626.3,3.80756]
[1727357629312,7.6297389,2626.8,2626.4,3.80749]
[1727357629313,0.7955789,2626.8,2626.4,3.80749]
[1727357630039,4.6024889,2626.8,2626.4,3.80749]
[1727357630750,4.6024889,2626.8,2626.3,3.80762]
[1727357631055,3.8077,2626.3,2625.8,3.80825]
[1727357631748,0.7799,2626.6,2625.9,3.92965976]
[1727357631953,0.7799,2626.6,2626.3,3.80754]
[1727357632323,0.0156789,2626.8,2626.6,3.80718]
[1727357632520,0.0156789,2626.8,2626.4,7.6148]
[1727357632721,0.0156789,2626.8,2625.9,0.0453]
[1727357632935,0.0156789,2626.8,2626.2,3.80766]
[1727357632936,3.8226589,2626.8,2626.2,3.80766]
[1727357633141,7.72487945,2626.8,2626.2,3.80766]
[1727357633418,0.0156789,2626.8,2626.3,3.80763]
[1727357633639,0.0156789,2626.8,2626.4,3.80749]
[1727357634563,0.0156789,2626.8,2626.3,3.80763]
[1727357634726,0.0156789,2626.8,2626.4,3.80748]
[1727357635110,3.8226689,2626.8,2626.1,3.80784]
[1727357635421,3.8226689,2626.8,2626.2,3.80776]
[1727357635422,4.5904,2626.7,2626.2,3.80776]
[1727357635853,0.7833,2626.7,2626.2,3.80776]
[1727357636052,4.59036,2626.7,2626.2,3.80776]
[1727357636271,0.7833,2626.7,2626.0,3.808]
[1727357636472,0.7833,2626.7,2626.2,3.80777]
[1727357636972,0.7833,2626.7,2625.8,3.80825]
[1727357636973,3.80721,2626.6,2625.8,3.80825]
[1727357637128,3.80721,2626.6,2626.0,3.80805]
[1727357637336,3.80721,2626.6,2626.1,3.80789]
[1727357637570,4.59039,2626.7,2626.2,3.80769]
[1727357637768,4.59039,2626.7,2626.2,7.61538]
[1727357637930,0.7833,2626.7,2626.3,3.80753]
[1727357638128,4.59037,2626.7,2626.3,3.80753]
[1727357638762,0.7833,2626.7,2626.3,3.80753]
[1727357639172,0.7833,2626.7,2626.2,3.80777]
[1727357639173,4.59037,2626.7,2626.2,3.80777]
[1727357639337,4.59037,2626.7,2626.1,3.8079]
[1727357639548,3.80738,2626.5,2626.0,3.80805]
[1727357639774,3.80725,2626.6,2625.9,3.80812]
[1727357639934,3.80735,2626.5,2626.1,3.80789]
[1727357640137,0.8225,2626.3,2625.9,3.80812]
[1727357640346,0.8225,2626.3,2625.8,3.80829]
[1727357640577,0.8225,2626.3,2625.9,3.80816]
[1727357640785,0.8225,2626.3,2625.8,3.80829]
[1727357641075,4.63017,2626.3,2625.8,3.80827]
[1727357641255,4.63017,2626.3,2625.8,7.61653]
[1727357642237,4.63017,2626.3,2625.8,3.80826]
[1727357642442,0.8225,2626.3,2626.0,3.808]
[1727357642640,0.8225,2626.3,2626.0,3.80799]
[1727357642951,0.7777,2626.7,2626.4,3.80748]
[1727357643184,0.7777,2626.7,2626.2,3.80769]
[1727357643387,4.58478,2626.7,2626.3,3.8076]
[1727357643595,0.7777,2626.7,2626.4,3.80748]
[1727357644092,0.7777,2626.7,2626.5,3.80731]
[1727357644300,0.0156789,2626.8,2626.6,3.80709]
[1727357644447,0.0156789,2626.8,2626.7,3.80705]
[1727357645053,0.0311213,2626.8,2626.7,3.80705]
[1727357648482,0.0311213,2626.8,2626.6,7.61432]
[1727357648797,0.0311213,2626.8,2626.7,3.80705]
[1727357652407,0.0311213,2626.8,2626.4,3.80736]
[1727357652564,0.823,2626.5,2626.3,3.8076]
[1727357652878,0.823,2626.5,2626.2,3.80775]
[1727357653083,0.823,2626.5,2626.3,3.80763]
[1727357653401,0.823,2626.5,2626.1,3.80781]
[1727357653402,0.823,2626.5,2626.2,3.80776]
[1727357654063,0.823,2626.5,2626.0,3.80797]
[1727357654064,4.63042,2626.5,2626.0,3.80797]
[1727357654267,5.09657413,2626.5,2625.8,3.80825]
[1727357654467,3.8075,2626.4,2625.9,3.80812]
[1727357655060,3.80764,2626.3,2625.8,3.80825]
[1727357655264,0.7691,2626.2,2625.5,1.37905688]
[1727357655503,0.51276954,2626.4,2625.2,1.23176188]
[1727357655504,3.80843,2625.8,2625.2,3.80912]
[1727357655707,3.80843,2625.8,2625.1,2.17003146]
[1727357655708,0.7691,2625.5,2625.0,3.8095]
[1727357655863,3.80821,2625.9,2625.2,3.80912]
[1727357656203,0.7848,2625.8,2625.5,3.80873]
[1727357656502,8.49350099,2626.5,2625.8,3.80834]
[1727357656503,0.7848,2626.2,2625.8,3.80834]
[1727357656659,0.7848,2626.2,2625.9,3.80811]
[1727357656864,0.7832,2626.5,2625.5,0.12145716]
[1727357657062,0.7832,2626.5,2626.2,3.80769]
[1727357657474,0.0311213,2626.6,2626.4,3.80747]
[1727357657771,0.0311213,2626.6,2626.2,3.80769]
[1727357657972,0.0311213,2626.6,2626.0,3.85336]
[1727357657973,0.0311213,2626.6,2626.4,3.80737]
[1727357659068,0.0311213,2626.6,2626.0,1.42426633]
[1727357659069,3.8384013,2626.6,2626.0,1.42426633]
[1727357659381,3.8384013,2626.6,2625.5,1.99611785]
[1727357659382,0.76,2626.0,2625.4,3.80884]
[1727357659585,0.76,2626.0,2625.6,3.80863]
[1727357659785,0.76,2626.0,2625.4,3.80884]
[1727357660115,4.56807,2626.0,2625.4,3.80883]
[1727357660320,4.56807,2626.0,2625.4,7.61767]
[1727357660472,0.76,2626.0,2625.4,3.80883]
[1727357660667,0.76,2626.0,2625.5,3.0]
[1727357660864,0.76,2626.0,2625.6,3.80864]
[1727357661291,4.56808,2626.0,2625.4,3.80888]
[1727357661464,4.56808,2626.0,2625.4,7.61776]
[1727357661677,0.85520609,2626.0,2625.2,3.80918]
[1727357661891,3.80738,2626.5,2625.0,3.80947]
[1727357661892,0.78,2625.5,2625.0,3.80947]
[1727357662206,0.78,2625.5,2624.8,3.80975]
[1727357662207,4.58894,2625.5,2624.8,3.80975]
[1727357662379,4.68417003,2625.5,2624.8,3.80971]
[1727357662779,4.58894,2625.5,2624.8,3.80971]
[1727357662985,4.58894,2625.5,2624.8,3.80969]
[1727357663209,4.58894,2625.5,2624.9,3.80962]
[1727357663522,4.58894,2625.5,2624.5,3.81015]
[1727357663523,0.8065,2625.1,2624.5,3.81015]
[1727357663687,0.90174318,2625.1,2624.5,3.81015]
[1727357664167,0.8065,2625.1,2624.5,3.81015]
[1727357664364,0.8065,2625.1,2624.7,3.80993]
[1727357664569,0.8065,2625.1,2624.9,3.80964]
[1727357664769,0.801,2625.5,2624.9,3.80964]
[1727357664964,0.801,2625.5,2625.1,3.80925]
[1727357665222,0.801,2625.5,2625.1,7.61852]
[1727357665365,0.801,2625.5,2625.2,3.8092]
[1727357665668,0.801,2625.5,2624.8,7.61948]
[1727357665871,0.753,2625.9,2625.1,3.8093]
[1727357666070,3.80852,2625.7,2625.1,3.8093]
[1727357666315,0.7823,2625.5,2624.6,3.85528]
[1727357666533,0.7823,2625.5,2624.9,3.80957]
[1727357666674,0.7823,2625.5,2625.0,3.8095]
[1727357666875,0.7823,2625.8,2625.0,3.80949]
[1727357667185,4.59067,2625.8,2625.2,7.61824]
[1727357667385,4.59067,2625.8,2625.2,3.8091]
[1727357667775,8.39913,2625.8,2625.2,3.8091]
[1727357668109,8.39915,2625.8,2625.2,3.8091]
[1727357668310,8.39916,2625.8,2625.2,3.8091]
[1727357668512,8.39916,2625.8,2625.2,7.61825]
[1727357668513,4.59067,2625.8,2625.2,7.61825]
[1727357668687,0.7823,2625.8,2625.3,3.80908]
[1727357668883,0.7823,2625.8,2625.2,3.8091]
[1727357669089,4.59076,2625.8,2625.2,3.8091]
[1727357669284,4.59076,2625.8,2625.3,3.80907]
[1727357669650,0.7823,2625.8,2625.4,3.80891]
[1727357669771,4.68609099,2626.4,2625.1,0.0453]
[1727357669971,4.63464,2626.3,2625.4,3.80888]
[1727357670175,3.80796,2626.1,2625.6,3.80865]
[1727357670418,3.80796,2626.1,2625.6,3.80858]
[1727357670916,3.90306435,2626.2,2625.6,3.8085]
[1727357671111,4.63464,2626.3,2625.7,3.80841]
[1727357671414,3.9030129,2626.2,2625.7,3.80841]
[1727357671572,3.80792,2626.1,2625.6,3.80865]
[1727357671771,3.80792,2626.1,2625.4,3.80886]
[1727357671986,3.80792,2626.1,2625.1,3.85463]
[1727357671987,0.7727,2625.7,2625.2,3.80909]
[1727357672181,0.7727,2625.7,2625.4,3.80894]
[1727357672384,4.60477,2626.0,2625.5,3.8087]
[1727357672690,3.80786,2626.2,2625.1,0.0453]
[1727357672691,3.80782,2626.2,2625.6,3.80852]
[1727357672874,3.80782,2626.2,2625.7,3.80841]
[1727357672875,0.7966,2626.2,2625.7,3.80841]
[1727357673073,0.7966,2626.2,2625.3,3.80906]
[1727357673074,0.7966,2626.2,2625.9,3.80814]
[1727357673317,3.8383313,2626.6,2626.3,3.80762]
[1727357673318,0.7966,2626.5,2626.3,3.80762]
[1727357673528,0.0311213,2626.6,2626.4,3.88362665]
[1727357673744,0.0311213,2626.6,2626.2,3.80773]
[1727357673914,0.0311213,2626.6,2626.2,7.61539]
[1727357674307,0.0311213,2626.6,2626.3,3.80763]
[1727357675802,0.0311213,2626.6,2626.4,3.80746]
[1727357676001,0.0311213,2626.6,2626.3,7.61508]
[1727357676209,0.0311213,2626.6,2626.3,3.80754]
[1727357676446,0.0311213,2626.6,2626.2,3.80777]
[1727357676793,3.8384013,2626.6,2626.0,6.80806]
[1727357676994,3.80739,2626.5,2626.0,3.80806]
[1727357677633,0.0311213,2626.6,2626.2,3.80777]
[1727357677794,0.0311213,2626.6,2626.2,3.80767]
[1727357678735,0.0311213,2626.6,2626.4,3.80747]
[1727357679218,0.0311213,2626.6,2626.2,3.80767]
[1727357679219,0.0311213,2626.6,2626.3,3.80763]
[1727357679424,0.0311213,2626.6,2626.5,3.80734]
[1727357679607,0.0311213,2626.6,2626.4,3.80748]
[1727357680138,0.0311213,2626.6,2626.4,3.80741]
[1727357680528,0.0311213,2626.6,2626.3,3.85292]
[1727357681563,0.0311213,2626.6,2626.4,3.80736]
[1727357682324,0.0311213,2626.6,2626.3,3.85291]
[1727357682869,0.0311213,2626.6,2626.5,3.80734]
[1727357683065,0.0311213,2626.6,2626.3,3.85281]
[1727357683375,0.0311213,2626.6,2626.4,3.80747]
[1727357685769,0.0311213,2626.6,2626.3,3.85281]